[Event "MČR juniorů a juniorek v rapid šachu 2023"]
[Site "Czech Republic"]
[Date "2023.09.24"]
[Round "9.13"]
[White "Janouskova, Adela"]
[Black "Pavlis, Matej"]
[Result "0-1"]
[TimeControl "20 min + 5 sec per move"]
[WhiteFideId "23709804"]
[BlackFideId "23735767"]
[WhiteElo "1442"]
[BlackElo "1771"]

1. e4 {[%clk 00:20:08]} {[%emt 00:00:01]} c6 {[%clk 00:20:01]} {[%emt
00:00:10]} 2. d4 {[%clk 00:20:07]} {[%emt 00:00:05]} d5 {[%clk 00:20:05]} 3. e5
{[%clk 00:20:04]} {[%emt 00:00:09]} c5 {[%clk 00:20:09]} {[%emt 00:00:01]} 4.
c3 {[%clk 00:19:43]} {[%emt 00:00:25]} Nc6 {[%clk 00:20:10]} {[%emt 00:00:04]}
5. Nf3 {[%clk 00:19:40]} {[%emt 00:00:08]} Bg4 {[%clk 00:19:49]} {[%emt
00:00:26]} 6. Be2 {[%clk 00:18:07]} {[%emt 00:01:38]} e6 {[%clk 00:19:48]}
{[%emt 00:00:07]} 7. Be3 {[%clk 00:17:55]} {[%emt 00:00:16]} Nge7 {[%clk
00:18:47]} {[%emt 00:01:06]} 8. Na3 {[%clk 00:16:52]} {[%emt 00:01:08]} Nf5
{[%clk 00:18:33]} {[%emt 00:00:19]} 9. Nc2 {[%clk 00:16:28]} {[%emt 00:00:29]}
Be7 {[%clk 00:18:16]} {[%emt 00:00:22]} 10. O-O {[%clk 00:16:24]} {[%emt
00:00:08]} O-O {[%clk 00:18:17]} {[%emt 00:00:04]} 11. h3 {[%clk 00:16:24]}
{[%emt 00:00:05]} Bxf3 {[%clk 00:18:20]} {[%emt 00:00:02]} 12. Bxf3 {[%clk
00:16:25]} {[%emt 00:00:04]} Qb6 {[%clk 00:16:49]} {[%emt 00:01:35]} 13. b3
{[%clk 00:16:03]} {[%emt 00:00:28]} Qa5 {[%clk 00:15:43]} {[%emt 00:01:11]} 14.
Qd3 {[%clk 00:15:13]} {[%emt 00:00:55]} Rac8 {[%clk 00:15:06]} {[%emt
00:00:42]} 15. g4 {[%clk 00:13:23]} {[%emt 00:01:55]} Nh4 {[%clk 00:15:07]}
{[%emt 00:00:04]} 16. Bh1 {[%clk 00:12:27]} {[%emt 00:01:00]} cxd4 {[%clk
00:15:02]} {[%emt 00:00:11]} 17. cxd4 {[%clk 00:12:23]} {[%emt 00:00:09]} Rc7
{[%clk 00:12:55]} {[%emt 00:02:12]} 18. f4 {[%clk 00:10:57]} {[%emt 00:01:31]}
Rfc8 {[%clk 00:12:39]} {[%emt 00:00:21]} 19. Rf2 {[%clk 00:10:33]} {[%emt
00:00:29]} Nb4 {[%clk 00:12:25]} {[%emt 00:00:19]} 20. Nxb4 {[%clk 00:10:32]}
{[%emt 00:00:07]} Qxb4 {[%clk 00:12:24]} {[%emt 00:00:05]} 21. Bd2 {[%clk
00:06:53]} {[%emt 00:03:44]} Qb6 {[%clk 00:12:28]} 22. Raf1 {[%clk 00:06:09]}
{[%emt 00:00:48]} Bb4 {[%clk 00:12:12]} {[%emt 00:00:21]} 23. Bxb4 {[%clk
00:06:06]} {[%emt 00:00:09]} Qxb4 {[%clk 00:12:16]} 24. Qg3 {[%clk 00:05:14]}
{[%emt 00:00:56]} Ng6 {[%clk 00:11:24]} {[%emt 00:00:58]} 25. f5 {[%clk
00:05:15]} {[%emt 00:00:04]} Rc3 {[%clk 00:11:28]} {[%emt 00:00:01]} 26. Qh2
{[%clk 00:04:03]} {[%emt 00:01:17]} Nf8 {[%clk 00:07:52]} {[%emt 00:03:41]} 27.
fxe6 {[%clk 00:03:34]} {[%emt 00:00:34]} Nxe6 {[%clk 00:04:45]} {[%emt
00:03:12]} 28. Bxd5 {[%clk 00:01:34]} {[%emt 00:02:04]} Qxd4 {[%clk 00:04:36]}
{[%emt 00:00:15]} 29. Bxb7 {[%clk 00:00:12]} {[%emt 00:01:28]} Rd8 {[%clk
00:04:40]} 30. Bg2 {[%clk 00:00:13]} {[%emt 00:00:04]} Ng5 {[%clk 00:03:32]}
{[%emt 00:01:13]} 31. Kh1 {[%clk 00:00:11]} {[%emt 00:00:07]} Ne4 {[%clk
00:03:04]} {[%emt 00:00:34]} 32. Bxe4 {[%clk 00:00:13]} {[%emt 00:00:03]} Qxe4+
{[%clk 00:03:08]} 33. Qg2 {[%clk 00:00:13]} {[%emt 00:00:05]} Qxe5 {[%clk
00:02:21]} {[%emt 00:00:52]} 34. Rf5 {[%clk 00:00:16]} {[%emt 00:00:03]} Qe6
{[%clk 00:02:02]} {[%emt 00:00:23]} 35. Qb7 {[%clk 00:00:08]} {[%emt 00:00:13]}
Rxh3+ {[%clk 00:01:38]} {[%emt 00:00:29]} 36. Kg2 {[%clk 00:00:11]} Rhd3 {[%clk
00:01:23]} {[%emt 00:00:20]} 37. Rxf7 {[%clk 00:00:07]} {[%emt 00:00:09]} Rd2+
{[%clk 00:01:26]} {[%emt 00:00:02]} 38. R7f2 {[%clk 00:00:11]} {[%emt
00:00:02]} Qxg4+ {[%clk 00:01:28]} {[%emt 00:00:03]} 39. Kh1 {[%clk 00:00:14]}
{[%emt 00:00:02]} Rxf2 {[%clk 00:01:07]} {[%emt 00:00:26]} 40. Rxf2 {[%clk
00:00:18]} {[%emt 00:00:01]} Qh3+ {[%clk 00:01:01]} {[%emt 00:00:10]} 41. Kg1
{[%clk 00:00:21]} {[%emt 00:00:02]} Rd1+ {[%clk 00:01:05]} {[%emt 00:00:01]} 42.
Rf1 {[%clk 00:00:24]} {[%emt 00:00:03]} Rxf1# 0-1

[Event "MČR juniorů a juniorek v rapid šachu 2023"]
[Site "Czech Republic"]
[Date "2023.09.24"]
[Round "9.14"]
[White "Husa, Daniel"]
[Black "Zadrapova, Amalie"]
[Result "1-0"]
[TimeControl "20 min + 5 sec per move"]
[WhiteFideId "393487"]
[BlackFideId "23710276"]
[WhiteElo "1760"]
[BlackElo "1590"]

1. d4 {[%clk 00:20:07]} {[%emt 00:00:02]} Nf6 {[%clk 00:20:09]} {[%emt
00:00:02]} 2. c4 {[%clk 00:20:09]} {[%emt 00:00:03]} g6 {[%clk 00:20:12]}
{[%emt 00:00:02]} 3. g3 {[%clk 00:20:13]} Bg7 {[%clk 00:20:15]} {[%emt
00:00:03]} 4. Bg2 {[%clk 00:20:14]} {[%emt 00:00:03]} O-O {[%clk 00:20:17]}
{[%emt 00:00:04]} 5. Nc3 {[%clk 00:20:15]} {[%emt 00:00:04]} d6 {[%clk
00:20:01]} {[%emt 00:00:20]} 6. Nf3 {[%clk 00:20:14]} {[%emt 00:00:05]} Nbd7
{[%clk 00:20:00]} {[%emt 00:00:08]} 7. O-O {[%clk 00:20:13]} {[%emt 00:00:05]}
c5 {[%clk 00:19:47]} {[%emt 00:00:19]} 8. e4 {[%clk 00:19:40]} {[%emt
00:00:38]} Rb8 {[%clk 00:19:13]} {[%emt 00:00:38]} 9. h3 {[%clk 00:18:39]}
{[%emt 00:01:06]} cxd4 {[%clk 00:19:06]} {[%emt 00:00:13]} 10. Nxd4 {[%clk
00:18:38]} {[%emt 00:00:05]} Ne5 {[%clk 00:18:26]} {[%emt 00:00:45]} 11. Qe2
{[%clk 00:18:00]} {[%emt 00:00:43]} a6 {[%clk 00:17:32]} {[%emt 00:00:59]} 12.
Be3 {[%clk 00:17:31]} {[%emt 00:00:34]} Qc7 {[%clk 00:16:58]} {[%emt 00:00:40]}
13. b3 {[%clk 00:16:58]} {[%emt 00:00:37]} b5 {[%clk 00:13:47]} {[%emt
00:03:17]} 14. f4 {[%clk 00:15:50]} {[%emt 00:01:13]} Ned7 {[%clk 00:13:10]}
{[%emt 00:00:41]} 15. Nd5 {[%clk 00:14:58]} {[%emt 00:00:57]} Nxd5 {[%clk
00:13:13]} {[%emt 00:00:02]} 16. cxd5 {[%clk 00:14:36]} {[%emt 00:00:27]} Nc5
{[%clk 00:11:37]} {[%emt 00:01:42]} 17. Rac1 {[%clk 00:13:50]} {[%emt
00:00:49]} b4 {[%clk 00:10:27]} {[%emt 00:01:16]} 18. Nc6 {[%clk 00:12:44]}
{[%emt 00:01:11]} Rb5 {[%clk 00:09:59]} {[%emt 00:00:34]} 19. e5 {[%clk
00:11:00]} {[%emt 00:01:49]} Bb7 {[%clk 00:07:15]} {[%emt 00:02:49]} 20. Rfd1
{[%clk 00:07:29]} {[%emt 00:03:35]} Qd7 {[%clk 00:04:12]} {[%emt 00:03:08]} 21.
Rc4 {[%clk 00:07:00]} {[%emt 00:00:35]} Rc8 {[%clk 00:03:38]} {[%emt 00:00:38]}
22. Rdc1 {[%clk 00:05:29]} {[%emt 00:01:36]} e6 {[%clk 00:02:49]} {[%emt
00:00:54]} 23. Nxb4 {[%clk 00:02:37]} {[%emt 00:02:57]} exd5 {[%clk 00:02:19]}
{[%emt 00:00:35]} 24. Nxd5 {[%clk 00:02:32]} {[%emt 00:00:10]} Bxd5 {[%clk
00:01:21]} {[%emt 00:01:03]} 25. Bxd5 {[%clk 00:02:20]} {[%emt 00:00:18]} dxe5
{[%clk 00:01:15]} {[%emt 00:00:10]} 26. Qg2 {[%clk 00:01:30]} {[%emt 00:00:55]}
exf4 {[%clk 00:00:57]} {[%emt 00:00:24]} 27. Bxf4 {[%clk 00:01:02]} {[%emt
00:00:33]} Rd8 {[%clk 00:00:28]} {[%emt 00:00:34]} 28. Bc6 {[%clk 00:00:52]}
{[%emt 00:00:15]} Bd4+ {[%clk 00:00:17]} {[%emt 00:00:15]} 29. Kh2 {[%clk
00:00:49]} {[%emt 00:00:08]} Qe7 {[%clk 00:00:21]} {[%emt 00:00:02]} 30. Bxb5
{[%clk 00:00:40]} {[%emt 00:00:13]} axb5 {[%clk 00:00:25]} 31. R4c2 {[%clk
00:00:29]} {[%emt 00:00:17]} Nd3 {[%clk 00:00:28]} {[%emt 00:00:02]} 32. Rf1
{[%clk 00:00:23]} {[%emt 00:00:09]} Nb4 {[%clk 00:00:29]} {[%emt 00:00:05]} 33.
Rd2 {[%clk 00:00:23]} {[%emt 00:00:06]} Nc6 {[%clk 00:00:17]} {[%emt 00:00:17]}
34. Rfd1 {[%clk 00:00:21]} {[%emt 00:00:07]} Bf6 {[%clk 00:00:17]} {[%emt
00:00:05]} 35. Qxc6 {[%clk 00:00:18]} {[%emt 00:00:07]} Rxd2+ {[%clk 00:00:19]}
{[%emt 00:00:04]} 36. Rxd2 {[%clk 00:00:20]} {[%emt 00:00:03]} g5 {[%clk
00:00:21]} {[%emt 00:00:03]} 37. Qc8+ {[%clk 00:00:14]} {[%emt 00:00:11]} Kg7
{[%clk 00:00:25]} 38. Qg4 {[%clk 00:00:16]} {[%emt 00:00:03]} h6 {[%clk
00:00:28]} {[%emt 00:00:02]} 39. h4 {[%clk 00:00:12]} {[%emt 00:00:09]} Kh7
{[%clk 00:00:32]} 40. hxg5 {[%clk 00:00:13]} {[%emt 00:00:03]} hxg5 {[%clk
00:00:35]} 41. Rd5 {[%clk 00:00:13]} {[%emt 00:00:06]} Kg6 {[%clk 00:00:32]}
{[%emt 00:00:09]} 42. Qf5+ {[%clk 00:00:15]} {[%emt 00:00:03]} Kh6 {[%clk
00:00:34]} {[%emt 00:00:03]} 43. Bxg5+ {[%clk 00:00:12]} {[%emt 00:00:08]} Bxg5
{[%clk 00:00:27]} {[%emt 00:00:12]} 44. Qxg5+ {[%clk 00:00:13]} {[%emt
00:00:04]} 1-0

[Event "MČR juniorů a juniorek v rapid šachu 2023"]
[Site "Czech Republic"]
[Date "2023.09.24"]
[Round "9.15"]
[White "Mrazek, Adam"]
[Black "Hruby, Filip"]
[Result "1/2-1/2"]
[TimeControl "20 min + 5 sec per move"]
[WhiteFideId "23725010"]
[BlackFideId "23721480"]
[WhiteElo "1753"]
[BlackElo "1460"]

1. c4 {[%clk 00:20:05]} {[%emt 00:00:05]} c6 {[%clk 00:19:57]} {[%emt
00:00:13]} 2. g3 {[%clk 00:20:06]} {[%emt 00:00:03]} Nf6 {[%clk 00:19:57]}
{[%emt 00:00:06]} 3. Bg2 {[%clk 00:20:09]} {[%emt 00:00:02]} d5 {[%emt
00:00:05]} 4. Nf3 {[%clk 00:20:12]} Bg4 {[%clk 00:19:54]} {[%emt 00:00:09]} 5.
O-O {[%clk 00:19:32]} {[%emt 00:00:44]} e6 {[%clk 00:19:57]} {[%emt 00:00:02]}
6. cxd5 {[%clk 00:19:04]} {[%emt 00:00:33]} cxd5 {[%clk 00:20:00]} {[%emt
00:00:02]} 7. Nc3 {[%clk 00:18:16]} {[%emt 00:00:53]} Nc6 {[%clk 00:20:03]}
{[%emt 00:00:01]} 8. d3 {[%clk 00:18:02]} {[%emt 00:00:19]} a6 {[%clk
00:19:51]} {[%emt 00:00:17]} 9. Qb3 {[%clk 00:16:13]} {[%emt 00:01:53]} Qc8
{[%clk 00:18:30]} {[%emt 00:01:26]} 10. e4 {[%clk 00:12:00]} {[%emt 00:04:19]}
dxe4 {[%clk 00:17:51]} {[%emt 00:00:44]} 11. dxe4 {[%clk 00:11:44]} {[%emt
00:00:21]} e5 {[%clk 00:17:29]} {[%emt 00:00:26]} 12. Nd5 {[%clk 00:10:23]}
{[%emt 00:01:27]} Nd7 {[%clk 00:12:23]} {[%emt 00:05:10]} 13. Be3 {[%clk
00:04:44]} {[%emt 00:05:45]} Bc5 {[%clk 00:09:58]} {[%emt 00:02:29]} 14. Bxc5
{[%clk 00:02:31]} {[%emt 00:02:19]} Nxc5 {[%emt 00:00:05]} 15. Qb6 {[%clk
00:02:25]} {[%emt 00:00:08]} Ne6 {[%clk 00:09:18]} {[%emt 00:00:48]} 16. Rac1
{[%clk 00:01:43]} {[%emt 00:00:47]} Bxf3 {[%clk 00:07:51]} {[%emt 00:01:31]} 17.
Bxf3 {[%clk 00:01:46]} {[%emt 00:00:03]} Rb8 {[%clk 00:07:46]} {[%emt
00:00:09]} 18. Bg4 {[%clk 00:01:13]} {[%emt 00:00:38]} Qd8 {[%clk 00:07:00]}
{[%emt 00:00:51]} 19. Bxe6 {[%clk 00:00:34]} {[%emt 00:00:44]} Qxb6 {[%clk
00:06:59]} {[%emt 00:00:07]} 20. Bxf7+ {[%clk 00:00:34]} {[%emt 00:00:05]} Kxf7
{[%clk 00:07:00]} {[%emt 00:00:04]} 21. Nxb6 {[%clk 00:00:38]} {[%emt
00:00:01]} Rbd8 {[%clk 00:06:20]} {[%emt 00:00:41]} 22. Rfd1 {[%clk 00:00:33]}
{[%emt 00:00:14]} Rxd1+ {[%clk 00:05:10]} {[%emt 00:01:15]} 23. Rxd1 {[%clk
00:00:37]} Rd8 {[%clk 00:05:04]} {[%emt 00:00:10]} 24. Rxd8 {[%clk 00:00:41]}
{[%emt 00:00:02]} Nxd8 {[%clk 00:05:08]} {[%emt 00:00:01]} 25. f4 {[%clk
00:00:29]} {[%emt 00:00:17]} exf4 {[%clk 00:04:03]} {[%emt 00:01:10]} 26. gxf4
{[%clk 00:00:33]} Ne6 {[%clk 00:04:04]} {[%emt 00:00:02]} 27. Nd5 {[%clk
00:00:37]} {[%emt 00:00:02]} Nc5 {[%clk 00:04:01]} {[%emt 00:00:08]} 28. Nc3
{[%clk 00:00:34]} {[%emt 00:00:09]} Nd3 {[%clk 00:04:02]} {[%emt 00:00:04]} 29.
f5 {[%clk 00:00:24]} {[%emt 00:00:14]} Nxb2 {[%clk 00:04:02]} {[%emt 00:00:05]}
30. Kf2 {[%clk 00:00:14]} {[%emt 00:00:16]} Kf6 {[%clk 00:03:34]} {[%emt
00:00:32]} 31. Ke3 {[%clk 00:00:12]} {[%emt 00:00:07]} Ke5 {[%clk 00:03:29]}
{[%emt 00:00:10]} 32. Ne2 {[%clk 00:00:06]} {[%emt 00:00:12]} Nc4+ {[%clk
00:03:23]} {[%emt 00:00:10]} 33. Kd3 {[%clk 00:00:11]} b5 {[%clk 00:03:03]}
{[%emt 00:00:27]} 34. Ng1 {[%clk 00:00:08]} {[%emt 00:00:07]} Nd6 {[%clk
00:02:47]} {[%emt 00:00:21]} 35. Nf3+ {[%clk 00:00:12]} Kf4 {[%clk 00:02:49]}
{[%emt 00:00:02]} 36. Nd2 {[%clk 00:00:16]} Nc4 {[%clk 00:01:47]} {[%emt
00:01:03]} 37. Nb3 {[%clk 00:00:20]} {[%emt 00:00:06]} Nb2+ {[%clk 00:01:30]}
{[%emt 00:00:21]} 38. Kd4 {[%clk 00:00:23]} {[%emt 00:00:03]} Na4 {[%clk
00:01:18]} {[%emt 00:00:17]} 39. Na5 {[%clk 00:00:10]} {[%emt 00:00:17]} Kg5
{[%clk 00:00:54]} {[%emt 00:00:29]} 40. Nc6 {[%clk 00:00:10]} {[%emt 00:00:06]}
Nb6 {[%clk 00:00:47]} {[%emt 00:00:12]} 41. Nb4 {[%clk 00:00:13]} {[%emt
00:00:02]} a5 {[%clk 00:00:44]} {[%emt 00:00:08]} 42. Nc6 {[%clk 00:00:11]}
{[%emt 00:00:07]} a4 {[%clk 00:00:40]} {[%emt 00:00:09]} 43. Kc5 {[%clk
00:00:11]} {[%emt 00:00:05]} Nd7+ {[%clk 00:00:39]} {[%emt 00:00:05]} 44. Kxb5
{[%clk 00:00:06]} {[%emt 00:01:09]} Kf4 {[%clk 00:01:21]} {[%emt 00:00:03]} 45.
Kxa4 {[%clk 00:00:08]} {[%emt 00:00:03]} Kxe4 {[%clk 00:01:23]} {[%emt
00:00:02]} 46. Ne7 {[%clk 00:00:12]} {[%emt 00:00:02]} Ke5 {[%clk 00:01:17]}
{[%emt 00:00:10]} 47. Kb5 {[%clk 00:00:16]} {[%emt 00:00:02]} Kf6 {[%clk
00:01:19]} {[%emt 00:00:01]} 48. Nc6 {[%clk 00:00:10]} {[%emt 00:00:13]} Kxf5
{[%emt 00:00:04]} 49. a4 Nf6 {[%clk 00:00:59]} {[%emt 00:00:25]} 50. a5 {[%clk
00:00:18]} {[%emt 00:00:02]} Ne8 {[%clk 00:01:03]} 51. Kb6 {[%clk 00:00:20]}
{[%emt 00:00:03]} Nd6 {[%clk 00:00:52]} {[%emt 00:00:15]} 52. a6 {[%clk
00:00:11]} {[%emt 00:00:16]} Ke6 {[%clk 00:00:34]} {[%emt 00:00:22]} 53. Kc7
{[%clk 00:00:08]} {[%emt 00:00:08]} Nb5+ {[%clk 00:00:25]} {[%emt 00:00:13]} 54.
Kb6 {[%clk 00:00:13]} Nd6 {[%clk 00:00:29]} 55. Nd4 {[%clk 00:00:11]} {[%emt
00:00:07]} Kd7 {[%clk 00:00:24]} {[%emt 00:00:09]} 56. Ka7 {[%clk 00:00:06]}
{[%emt 00:00:11]} Kc8 {[%clk 00:00:12]} {[%emt 00:00:16]} 57. h3 {[%clk
00:00:06]} {[%emt 00:00:05]} h5 {[%clk 00:00:14]} {[%emt 00:00:03]} 58. Ne6
{[%clk 00:00:10]} {[%emt 00:00:02]} g6 {[%clk 00:00:16]} {[%emt 00:00:03]} 59.
Kb6 {[%clk 00:00:13]} {[%emt 00:00:02]} Kd7 {[%clk 00:00:13]} {[%emt 00:00:07]}
60. Nc5+ {[%clk 00:00:17]} {[%emt 00:00:02]} Kd8 {[%clk 00:00:12]} {[%emt
00:00:06]} 61. Kc6 {[%clk 00:00:15]} {[%emt 00:00:07]} Nc8 {[%clk 00:00:14]}
{[%emt 00:00:03]} 62. Ne6+ {[%clk 00:00:16]} {[%emt 00:00:05]} Ke7 {[%clk
00:00:10]} {[%emt 00:00:07]} 63. Nf4 {[%clk 00:00:20]} {[%emt 00:00:02]} Kf6
{[%clk 00:00:07]} {[%emt 00:00:07]} 64. Kb7 {[%clk 00:00:19]} {[%emt 00:00:07]}
Nd6+ {[%clk 00:00:11]} {[%emt 00:00:01]} 65. Kc7 {[%clk 00:00:21]} {[%emt
00:00:03]} Nb5+ {[%clk 00:00:11]} {[%emt 00:00:05]} 66. Kb6 {[%clk 00:00:23]}
{[%emt 00:00:03]} Nd6 {[%clk 00:00:14]} 67. Nd5 {[%clk 00:00:16]} {[%emt
00:00:13]} Ke5 {[%clk 00:00:09]} {[%emt 00:00:10]} 68. Ne7 {[%clk 00:00:18]}
{[%emt 00:00:03]} Nc4+ {[%clk 00:00:09]} {[%emt 00:00:05]} 69. Kc7 {[%clk
00:00:08]} {[%emt 00:00:15]} Nd6 {[%clk 00:00:08]} {[%emt 00:00:06]} 70. Nxg6+
{[%clk 00:00:09]} {[%emt 00:00:04]} Kd5 {[%clk 00:00:11]} {[%emt 00:00:01]} 71.
Nf4+ {[%clk 00:00:10]} {[%emt 00:00:05]} Kc5 {[%clk 00:00:13]} {[%emt
00:00:04]} 72. Nxh5 {[%clk 00:00:12]} {[%emt 00:00:03]} Nb5+ {[%clk 00:00:14]}
{[%emt 00:00:04]} 73. Kb7 {[%clk 00:00:15]} {[%emt 00:00:03]} Nd6+ {[%clk
00:00:18]} {[%emt 00:00:01]} 74. Kc7 {[%clk 00:00:07]} Nb5+ {[%clk 00:00:20]}
{[%emt 00:00:16]} 75. Kd7 {[%clk 00:00:07]} {[%emt 00:00:04]} Kb6 {[%clk
00:00:22]} {[%emt 00:00:03]} 76. Nf6 {[%clk 00:00:07]} {[%emt 00:00:04]} Nd4
{[%clk 00:00:20]} {[%emt 00:00:06]} 77. Ke7 {[%clk 00:00:06]} {[%emt 00:00:06]}
Kxa6 {[%clk 00:00:23]} {[%emt 00:00:03]} 78. Kf7 {[%clk 00:00:08]} {[%emt
00:00:03]} Nf3 {[%clk 00:00:20]} {[%emt 00:00:08]} 79. Kg6 {[%clk 00:00:10]}
{[%emt 00:00:03]} Kb7 {[%clk 00:00:23]} {[%emt 00:00:03]} 80. Kf5 {[%clk
00:00:07]} {[%emt 00:00:08]} Nh4+ {[%clk 00:00:22]} {[%emt 00:00:05]} 81. Kg4
{[%clk 00:00:10]} {[%emt 00:00:02]} Ng6 {[%clk 00:00:26]} {[%emt 00:00:02]} 82.
Kg5 {[%clk 00:00:12]} {[%emt 00:00:03]} Ne5 {[%clk 00:00:25]} {[%emt 00:00:05]}
83. Kf5 {[%clk 00:00:09]} {[%emt 00:00:08]} Nf3 {[%clk 00:00:29]} 84. Kg4
{[%clk 00:00:13]} {[%emt 00:00:01]} Ne5+ {[%clk 00:00:31]} {[%emt 00:00:03]} 85.
Kf5 {[%clk 00:00:16]} {[%emt 00:00:02]} Nf3 {[%clk 00:00:35]} 86. Kg4 {[%clk
00:00:21]} Ne5+ {[%clk 00:00:39]} {[%emt 00:00:02]} 87. Kf5 {[%clk 00:00:25]}
Nf3 {[%emt 00:00:02]} 88. Ke4 {[%emt 00:00:02]} 1/2-1/2

[Event "MČR juniorů a juniorek v rapid šachu 2023"]
[Site "Czech Republic"]
[Date "2023.09.24"]
[Round "9.16"]
[White "Tegda, Vojtech"]
[Black "Hosova, Sandra"]
[Result "0-1"]
[TimeControl "20 min + 5 sec per move"]
[WhiteFideId "23723424"]
[BlackFideId "397717"]
[WhiteElo "1959"]
[BlackElo "1682"]

1. e4 {[%clk 00:20:07]} {[%emt 00:00:02]} c5 {[%clk 00:20:03]} {[%emt
00:00:08]} 2. c4 {[%clk 00:20:10]} {[%emt 00:00:02]} Nc6 {[%clk 00:20:06]}
{[%emt 00:00:02]} 3. Ne2 {[%clk 00:20:10]} {[%emt 00:00:05]} g6 {[%clk
00:20:09]} {[%emt 00:00:03]} 4. d4 {[%clk 00:20:11]} {[%emt 00:00:03]} cxd4
{[%clk 00:20:12]} {[%emt 00:00:02]} 5. Nxd4 {[%clk 00:20:14]} {[%emt 00:00:03]}
Bg7 {[%clk 00:20:14]} {[%emt 00:00:02]} 6. Be3 {[%clk 00:20:11]} {[%emt
00:00:08]} Nf6 {[%clk 00:20:17]} {[%emt 00:00:03]} 7. Nc3 {[%clk 00:20:08]}
{[%emt 00:00:06]} Ng4 {[%clk 00:20:14]} {[%emt 00:00:08]} 8. Qxg4 {[%clk
00:17:42]} {[%emt 00:02:32]} Nxd4 {[%clk 00:20:17]} {[%emt 00:00:03]} 9. Qd1
{[%clk 00:16:35]} {[%emt 00:01:11]} e5 {[%clk 00:20:20]} {[%emt 00:00:02]} 10.
Be2 {[%clk 00:16:11]} {[%emt 00:00:29]} d6 {[%clk 00:20:02]} {[%emt 00:00:24]}
11. O-O {[%clk 00:15:51]} {[%emt 00:00:24]} O-O {[%clk 00:20:03]} {[%emt
00:00:04]} 12. f4 {[%clk 00:14:51]} {[%emt 00:01:05]} f5 {[%clk 00:19:29]}
{[%emt 00:00:39]} 13. exf5 {[%clk 00:13:47]} {[%emt 00:01:09]} Nxf5 {[%clk
00:17:57]} {[%emt 00:01:37]} 14. Qd5+ {[%clk 00:12:09]} {[%emt 00:01:43]} Kh8
{[%clk 00:17:53]} {[%emt 00:00:09]} 15. Bd2 {[%clk 00:11:53]} {[%emt 00:00:20]}
Qh4 {[%clk 00:11:34]} {[%emt 00:06:25]} 16. Ne4 {[%clk 00:09:12]} {[%emt
00:02:46]} Nd4 {[%clk 00:07:25]} {[%emt 00:04:15]} 17. Bf3 {[%clk 00:07:24]}
{[%emt 00:01:52]} Be6 {[%clk 00:05:32]} {[%emt 00:01:58]} 18. Qxb7 {[%clk
00:05:39]} {[%emt 00:01:50]} Bxc4 {[%clk 00:04:28]} {[%emt 00:01:09]} 19. Rf2
{[%clk 00:03:26]} {[%emt 00:02:17]} Rab8 {[%clk 00:04:28]} {[%emt 00:00:06]} 20.
Qc7 {[%clk 00:03:04]} {[%emt 00:00:27]} Bd5 {[%clk 00:03:51]} {[%emt 00:00:41]}
21. Ng5 {[%clk 00:01:44]} {[%emt 00:01:26]} Nxf3+ {[%clk 00:01:44]} {[%emt
00:02:12]} 22. Nxf3 {[%clk 00:01:45]} {[%emt 00:00:03]} Bxf3 {[%clk 00:01:42]}
{[%emt 00:00:08]} 23. Rxf3 {[%clk 00:01:46]} {[%emt 00:00:03]} Rxb2 {[%clk
00:01:39]} {[%emt 00:00:09]} 24. Be1 {[%clk 00:01:14]} {[%emt 00:00:37]} Qg4
{[%clk 00:01:21]} {[%emt 00:00:23]} 25. Rg3 {[%clk 00:00:10]} {[%emt 00:01:09]}
Qxf4 {[%clk 00:01:25]} {[%emt 00:00:02]} 26. Qxd6 {[%clk 00:00:12]} {[%emt
00:00:03]} Qf1# {[%clk 00:00:38]} {[%emt 00:00:52]} 0-1